Cogmind - Beta 13 @@@ ROGUE MODE // 2024.07.24 @ 23:28:02 Player: Tuwiuu Result: Destroyed self with Grenade Launcher Performance ------------- Evolutions (0) 0 Regions Visited (2) 400 Robots Destroyed (24) 120 Value Destroyed (498) 498 Prototype IDs (0) 0 Alien Tech Used (0) 0 Bonus (0) 0 TOTAL SCORE: 1018 Bonus ------- None Cogmind --------- Core Integrity 0/250 Matter 280/300 Energy 244/265 System Corruption 4% Temperature Cool (1) Movement Walking (190) Ox1 Location -10/Mines Parts ------- > --- POWER (1) -------- Improved Ion Engine > --- PROPULSION (2) --- Aluminum Leg Aluminum Leg > --- UTILITY (2) ------ Medium Storage Unit > --- WEAPON (2) ------- Beam Rifle Grenade Launcher > --- INVENTORY (10) --- Light Ion Engine Light Ion Engine Improved Heat Sink Sensor Array Medium Laser Particle Gun Heavy Assault Rifle Mining Laser Peak State ------------ > --- POWER ------------ Improved Ion Engine > --- PROPULSION ------- Aluminum Leg Aluminum Leg > --- UTILITY ---------- Improved Heat Sink Medium Storage Unit > --- WEAPON ----------- Particle Gun Heavy Assault Rifle > --- INVENTORY -------- Light Ion Engine Light Ion Engine Aluminum Leg Improved Heat Sink Sensor Array Medium Laser Small Laser Assault Rifle Grenade Launcher Mining Laser [Rating: 13] Favorites ----------- Power Ion Engine Engine Ion Engine Propulsion Aluminum Leg Treads Light Treads Leg Aluminum Leg Hover Unit Hover Unit Utility Small Storage Unit Device Improved Heat Sink Storage Small Storage Unit Weapon Assault Rifle Energy Gun Small Laser Ballistic Gun Assault Rifle Ballistic Cannon Light Cannon Launcher Grenade Launcher Build | -11 -10 -10 ------- Run | Yrd Mat Min Slots Evolved . | . . . Power . | . . . Propulsion . | . . . Utility . | . . . Weapon . | . . . Parts Attached 43 | 6 24 13 Power 6 | 1 4 1 Engine 6 | 1 4 1 Core . | . . . Reactor . | . . . Propulsion 18 | 2 11 5 Treads 2 | . 2 . Leg 11 | 2 4 5 Wheel . | . . . Hover 5 | . 5 . Flight . | . . . Utility 4 | 1 2 1 Device 2 | . 1 1 Storage 2 | 1 1 . Processor . | . . . Hackware . | . . . Protection . | . . . Artifact . | . . . Weapon 15 | 2 7 6 Energy Gun 4 | . 1 3 Energy Cannon . | . . . Ballistic Gun 8 | 2 4 2 Ballistic Cannon 2 | . 2 . Launcher 1 | . . 1 Special Weapon . | . . . Impact Weapon . | . . . Slashing Weapon . | . . . Piercing Weapon . | . . . Special Melee Weapon . | . . . Unidentified Prototypes . | . . . Parts Lost 4 | . 1 3 Power . | . . . Propulsion 1 | . . 1 Utility 2 | . 1 1 Weapon 1 | . . 1 Highest Loss Streak 3 | . 1 3 To Critical Strikes . | . . . Average Slot Usage (%) 91 | . 89 96 Engine 14 | . 14 14 Treads 5 | . 8 . Leg 16 | . 11 28 Hover 5 | . 8 . Device 6 | . 4 11 Storage 14 | . 14 14 Energy Gun 9 | . 7 13 Ballistic Gun 12 | . 12 14 Ballistic Cannon 5 | . 7 . Naked Turns . | . . . Heaviest Build 24 | 14 18 24 Greatest Support 40 | 20 40 20 Greatest Overweight (x) 2 | . 2 1 Average Overweight (x) . | . . . Largest Inventory Capacity 10 | 8 10 10 Average Capacity 8 | 6 8 10 Most Carried 10 | 3 9 10 Average Carried 8 | 1 7 9 Final Capacity 10 | 8 10 10 Final Carried 9 | 3 9 8 Class Distribution -------------------- 63% | Mutant 36% | Scavenger-Mutant Dominant Class ---------------- Mutant | -10/Materials Scavenger-Mutant | -10/Mines Resources | -11 -10 -10 ----------- Run | Yrd Mat Min Matter Collected 842 | 196 452 194 Remotely . | . . . Salvage Created 774 | . 419 355 Parts 47 | . 28 19 Haulers Intercepted 1 | . 1 . Recyclers Shooed . | . . . Parts Field Recycled . | . . . Retrieved Matter . | . . . Parts Self-Destructed . | . . . Prevented . | . . . Kills | -11 -10 -10 ------- Run | Yrd Mat Min Combat Hostiles Destroyed 19 | . 8 11 Guns 19 | . 8 11 Classes Destroyed 8 | . 7 1 Worker 1 | . 1 . Hauler 1 | . 1 . Recycler 2 | . 1 1 Operator 1 | . 1 . Watcher 2 | . 2 . Swarmer 8 | . 3 5 Grunt 9 | . 5 4 Assembled 2 | . . 2 Best Kill Streak 6 | . 3 6 Combat Bots Only 5 | . 3 5 Max Kills in Single Turn 2 | . 1 2 Gunslinging 1 | . . 1 Exploded . | . . . Melee . | . . . Uniques/NPCs Destroyed . | . . . Combat | -11 -10 -10 -------- Run | Yrd Mat Min Hostile Shots Fired 127 | . 47 80 Missed 36 | . 19 17 Damage Taken 1184 | . 367 817 Core 250 | . 98 152 Absorbed by Shields . | . . . Core Remaining (%) 100 | 100 . . Volleys Fired 77 | . 50 27 Largest 2 | . 2 2 Hottest 86 | . 70 86 Shots Fired 154 | . 100 54 Gun 147 | . 94 53 Cannon 6 | . 6 . Launcher 1 | . . 1 Special . | . . . Kinetic 89 | . 63 26 Thermal 64 | . 37 27 Explosive 1 | . . 1 Electromagnetic . | . . . Robot Hit Streak 12 | . 8 12 Robot Miss Streak 6 | . 6 1 Penetration Max . | . . . Secondary Targets 2 | . . 2 Max Gunslinging Chain 1 | . . 1 Shots Hit Robots 101 | . 61 40 Core Hits 45 | . 25 20 Critical Kills 1 | . 1 . Critical Parts Destroyed . | . . . Critical Strikes 4 | . 2 2 Burn 2 | . . 2 Destroy 1 | . 1 . Blast 1 | . 1 . Melee Attacks . | . . . Impact . | . . . Slashing . | . . . Piercing . | . . . Sneak Attacks . | . . . Combat Hostiles . | . . . Follow-up Attacks . | . . . Damage Inflicted 1329 | . 745 584 Guns 1255 | . 674 581 Cannons 71 | . 71 . Explosions . | . . . Melee . | . . . Ramming 3 | . . 3 Kinetic 684 | . 438 246 Thermal 642 | . 307 335 Explosive . | . . . Electromagnetic . | . . . Impact . | . . . Slashing . | . . . Piercing . | . . . Highest Corruption 4 | . . 4 Average Corruption 4 | . . 4 Corruption Purged . | . . . Corruption Blocked . | . . . Effects 1 | . . 1 Data Loss (major) 1 | . . 1 Overload Shots . | . . . Overflow Damage . | . . . Projectiles . | . . . Explosions . | . . . Melee . | . . . Knockbacks 2 | . 2 . Impact . | . . . Kinetic 2 | . 2 . Secondary . | . . . Self-Inflicted Damage 37 | . . 37 Shots 1 | . . 1 Rammed . | . . . Targets Rammed 2 | . . 2 Kicked 2 | . . 2 Crushed . | . . . Highest Temperature 150 | . 150 99 Average Temperature 35 | . 36 34 Received Heat Transfer 677 | . 195 482 Siege Activations . | . . . Robots Corrupted . | . . . Combat Hostiles . | . . . Parts Fried . | . . . Impact Corruptions . | . . . Robots Melted . | . . . Combat Hostiles . | . . . Parts Melted 2 | . 1 1 Heat Transferred 1711 | . 675 1036 Parts Sabotaged . | . . . Parts Stolen . | . . . Parts Stripped . | . . . Power Chain Reactions . | . . . Alert | -11 -10 -10 ------- Run | Yrd Mat Min Peak Influence 224 | . 224 209 Initial 34 | . . 34 Average 79 | . 88 70 Maximum Alert Level 1 | . 1 1 Low Security (%) 92 | 100 91 94 Level 1 7 | . 8 5 Level 2 . | . . . Level 3 . | . . . Level 4 . | . . . Level 5 . | . . . High Security . | . . . Max Security . | . . . Squads Dispatched 4 | . 4 . Investigation 2 | . 2 . Extermination . | . . . Reinforcement 2 | . 2 . Assault . | . . . Garrison . | . . . Intercept . | . . . Searches Triggered . | . . . Construction Impeded . | . . . Haulers Reinforced . | . . . Active Scanning Responses . | . . . Cargo Convoy Interrupts . | . . . Stealth | -11 -10 -10 --------- Run | Yrd Mat Min Distress Signals 3 | . 1 2 Communications Jammed . | . . . Distress Signals . | . . . Times Spotted 50 | . 21 29 Peak Tracking Total 19 | . 4 19 Tactical Retreats 3 | . . 3 Traps | -11 -10 -10 ------- Run | Yrd Mat Min Traps Triggered 2 | . 2 . Indirectly . | . . . Trap Hack Attempts . | . . . Triggered . | . . . Disarmed . | . . . Reprogrammed . | . . . Reused . | . . . Traps Extracted . | . . . Installed . | . . . Triggered . | . . . Machines | -11 -10 -10 ---------- Run | Yrd Mat Min Machines Disabled 1 | . . 1 Max in Single Turn 1 | . . 1 Machines Repaired . | . . . Machines Dismantled . | . . . Machines Sabotaged . | . . . Overloaded Fab Kills . | . . . Hacking | -11 -10 -10 --------- Run | Yrd Mat Min Machines Accessed 7 | . 7 . Terminals 5 | . 5 . Fabricators . | . . . Repair Stations 1 | . 1 . Recycling Units 1 | . 1 . Scanalyzers . | . . . Garrison Access . | . . . Total Hacks 15 | . 15 . Successful 8 | . 8 . Failed 7 | . 7 . Catastrophic 2 | . 2 . Database Lockouts . | . . . Manual 12 | . 12 . Terminals 12 | . 12 . Fabricators . | . . . Repair Stations 1 | . 1 . Recycling Units 2 | . 2 . Scanalyzers . | . . . Garrison Access . | . . . Terminal Hacks 3 | . 3 . Branch Access Points 1 | . 1 . Emergency Access Points 1 | . 1 . Maintenance Status 1 | . 1 . Fabricator Hacks . | . . . Repair Station Hacks . | . . . Recycling Unit Hacks . | . . . Scanalyzer . | . . . Garrison Access Hacks . | . . . Unauthorized Hacks 5 | . 5 . Terminals 3 | . 3 . Botnet 3 | . 3 . Fabricators . | . . . Repair Stations . | . . . Recycling Units 2 | . 2 . Reject 1 | . 1 . Tunnel 1 | . 1 . Scanalyzers . | . . . Garrison Access . | . . . Data Cores Recovered . | . . . Used . | . . . Hacking Detections 7 | . 7 . Full Trace Events . | . . . Feedback Events . | . . . Feedback Blocked . | . . . Robot Schematics Acquired . | . . . Robots Built . | . . . Authchips . | . . . Time . | . . . Total Robot Build Rating . | . . . Part Schematics Acquired . | . . . Parts Built . | . . . Authchips . | . . . Time . | . . . Total Part Build Rating . | . . . Parts Repaired . | . . . Time . | . . . Parts Recycled . | . . . Recycled Matter . | . . . Retrieved Matter . | . . . Retrieved Components . | . . . Parts Scanalyzed . | . . . Part Schematics Acquired . | . . . Parts Damaged . | . . . Bothacking | -11 -10 -10 ------------ Run | Yrd Mat Min Used RIF Installer . | . . . Robots Hacked . | . . . Non-combat . | . . . Combat . | . . . Robot Hacks Applied . | . . . Relay Couplers Released . | . . . Fabnet Peak Effective % . | . . . Robots Rewired . | . . . Allies Hacked . | . . . Hacks Repelled . | . . . Allies | -11 -10 -10 -------- Run | Yrd Mat Min Total Allies . | . . . Largest Group . | . . . Highest-Rated Group . | . . . Highest-Rated Ally . | . . . Total Orders . | . . . Ally Attacks . | . . . Total Damage . | . . . Kills . | . . . Allies Corrupted . | . . . Allies Melted . | . . . Intel | -11 -10 -10 ------- Run | Yrd Mat Min Robot Analysis Total . | . . . Derelict Logs Recovered . | . . . Drone Launches . | . . . Drone Recoveries . | . . . Exploration | -11 -10 -10 ------------- Run | Yrd Mat Min Turns Passed 1694 | 55 1109 530 Spaces Moved 1052 | 37 785 230 Core 4 | 4 . . Treads 177 | . 177 . Legs 554 | 33 291 230 Wheels . | . . . Hover 317 | . 317 . Flight . | . . . Fastest Speed 50 | 50 56 120 Average Speed 121 | 112 106 176 Slowest Speed 190 | 120 180 190 Overloaded Moves . | . . . Propulsion Burnouts . | . . . Robots Hopped . | . . . Cave-ins Triggered . | . . . Exploration Rate (%) 43 | 4 92 34 Regions Visited 2 Branch Regions 1 Pre-discovered Areas 1 | . 1 . Known Exits Taken 1 | . 1 . Unknown Exits Taken 1 | 1 . . Scrap Searched 2 | . . 2 Spaces Dug . | . . . Terrain Destroyed . | . . . Melee . | . . . Projectile . | . . . AOE . | . . . Terrain Rammed . | . . . Walls Destroyed . | . . . Machines Disabled . | . . . Actions | -11 -10 -10 --------- Run | Yrd Mat Min Total 1316 | 47 965 304 Wait 93 | 2 75 16 Move 1050 | 36 784 230 Hop . | . . . Pick Up 19 | 3 12 4 Fast Attach 16 | 6 9 1 Attach 8 | . 5 3 Detach 5 | . 4 1 Swap 19 | . 10 9 Drop 27 | . 16 11 Fire 77 | . 50 27 Melee . | . . . Ram . | . . . Kick 2 | . . 2 Crush . | . . . Escape Stasis . | . . . Rewire . | . . . Trap . | . . . Miscellaneous . | . . . Route ------- -11/Scrapyard -10/Materials (discovered 5 exits: [*Mat x3] / *Min x2) -10/Mines History --------- Turn | Location | Event 3 | -11/Scrapyard | Discovered new exit (range 15) 56 | -11/Scrapyard | Entered Materials 252 | -10/Materials | Discovered new exit (range 13) 313 | -10/Materials | Build established: Mutant 432 | -10/Materials | Discovered new exit (range 16) 527 | -10/Materials | Discovered new exit (range 12) 785 | -10/Materials | Discovered new exit (range 8) 886 | -10/Materials | Identified exit to Mines 895 | -10/Materials | Discovered new exit (range 14) 1165 | -10/Materials | Entered Mines 1235 | -10/Mines | Core integrity fell below 50% 1348 | -10/Mines | Joined a pair of Derelicts in attacking an 0b10 outpost 1529 | -10/Mines | Build established: Scavenger-Mutant 1594 | -10/Mines | Assembled infested the area 1599 | -10/Mines | Assisted by a Guerilla fighting off Assembled 1655 | -10/Mines | Core integrity fell below 20% 1689 | -10/Mines | Lost 3 allies 1695 | -10/Mines | Destroyed self with Grenade Launcher Last Messages --------------- serious negative consequences. 01679_ S-10 Pest heat spikes uncontrollably. 01680_ S-10 Pest heat damages Flight Unit. 01680_ S-10 Pest overheating. 01680_ Kicked S-10 Pest. 01681_ S-10 Pest overheating. 01682_ S-10 Pest heat damages Flight Unit. 01682_ S-10 Pest overheating. 01682_ Aluminum Leg destroyed. 01683_ S-10 Pest overheating. 01683_ S-10 Pest destroyed. 01683_ Switching to secondary target: S-10 Pest. 01683_ Lgt. Ion Engine melted. 01683_ S-10 Pest destroyed. 01686_ Acquired 8 matter. 01689_ System corrupted: Substantial component data lost. 01690_ Hvy. Assault Rifle destroyed. 01695_ S-10 Pest knocked back. 01695_ as-41267 destroyed. 01695_ Pulverizer disabled. Map ----- +----------------------------------------------------+ | | | | | | | | | | | | | | | ?????????????????????????????????????????????????? | | ?????????????????????????????????????????????????? | | ######???????????????????????????????????????????? | | ## ##??????????????????????????????????????????? | | #??????????????????????????????????????????? | | #??????????????????????????????????????????? | | ##??????????????????????????????????????????? | | ##???????????????????????????????????????????? | | #????????????????????????????????????????????? | | #????????????????????????????????????????????? | | ##????????????????????????????????????????????? | | #?????????????????????????????????????????????? | | ##?????????????????#########???????????????????? | | ##????#######???????# #???????????????????? | | ##?????# """ #???????# #???????????????????? | | ???????# """ #???????# """" #???????????????????? | | ##?????# """ #???????# """" #???????????????????? | | ##????# #???????# " "" #???????????????????? | | #????# #???????# % @ #???????????????????? | | #????# #???#####a " "" #???????????????????? | | ######### ##???# %=a= """" #???????????????????? | | ##??# #????# ### s""" #???????????????????? | | #### #????# #?# #???????????????????? | | #????# #?# #???????????????????? | | ### ###### #?# #???????????????????? | | ### % % #?#########???????????????????? | | ### ##?# #########?????????????????????????????? | | ##?# ##??# #?????????????????????????????????????? | | #### #???# #?????????????????????????????????????? | | ##### #?????????????????????????????????????? | | ### ##????#######?????????????????????????? | | ??# ##???# """ #?????????????????????????? | | ??###### == ##??# """ #?????????????????????????? | | ???????# *%[%[#### """ #?????????????????????????? | | ???????##!=*=%%=* #?????????????????????????? | | ????????###%!###=# #?????????????????????????? | | ??????????####?# # #?????????????????????????? | | ???????????????# #######?????????????????????????? | | ???????????????# #???????????????????????????????? | | ???????????????# #######?????????????????????????? | | ??????????????## #?????????????????????????? | | ??????????????# / #?????????????????????????? | | ??????????????# ##% #?????????????????????????? | +----------------------------------------------------+ Best States ------------- Heat Dissipation 39 Energy Generation 12 Energy Capacity 265 Matter Stores 300 Matter Capacity 300 Sight Range 16 Terrain Scan Density 10 Evasion (%) 55 Recoil Reduction 2 Item Schematics ----------------- None Robot Schematics ------------------ None Fabricated ------------ Nothing Alien Tech Used ----------------- None Achievements -------------- None Challenges ------------ None Game ------ Seed LightningSapperMagmablaster Manual? 0 Play Time 00:37:29 Cumulative 15.3 hours Start 2024.07.24 @ 20:50:47 End 2024.07.24 @ 23:28:02 Sessions 2 Manual Loads 0 Difficulty Rogue Special Mode None Game No. 6 Rogue 6 Adventurer 0 Explorer 0 Win Type - Total 0 Types 0/0/0/0/0/0/0/0/0 Lore% 15 Gallery% 18 Achievement% 21 Wizard Run 0 Options --------- Layout 0 ASCII 0 Keyboard 0 Movement Mouse Keybinds 0 Fullscreen 2 Font 36/Smallcaps Map View 76x50 Zoom Use 0% Tactical HUD 1 Map Filters NONE Filters NONE Steam 1 RUN: cadb1fd4-5171-4872-8750-500a564cec92